[Event "10th Cesme Open-A 2024"]
[Site "Cesme"]
[Date "2024.06.25"]
[Round "4"]
[White "Kamer, Kayra"]
[Black "Bernadskiy, Vitaliy"]
[Result "1/2-1/2"]
[ECO "B56"]
[WhiteElo "2316"]
[BlackElo "2563"]
[Annotator "TA"]
[PlyCount "109"]
[EventDate "2024.06.23"]
[EventType "swiss"]
[EventCountry "TUR"]
[SourceTitle "playchess.com"]
[Source "ChessBase"]
[SourceQuality "1"]
[TimeControl "5400+30"]

{[%evp 37,109,-23,-16,-16,-17,-26,-35,-20,-32,-45,-43,-125,-98,-102,-97,-131,-144,-130,-145,-147,-143,-131,-120,-145,-106,-154,-61,-124,-7,-8,-8,-8,-8,-8,-4,-8,-8,-67,-22,-22,-8,-20,0,0,0,0,0,0,0,0,0,0,0,0,0,0,0,0,0,0,0,0,0,0,0,0,0,0,0,0,0,0,0,0]} 1. e4 {[%emt 0:01:00]} c5 {[%emt 0:01:00]} 2. Nf3 {[%emt 0:00:00]} d6 {[%emt 0:00:00]} 3. d4 {[%emt 0:00:00]} cxd4 {[%emt 0:00:00]} 4. Nxd4 {[%emt 0:00:30]} Nf6 {[%emt 0:00:00]} 5. Nc3 {[%emt 0:00:00]} Nc6 {[%emt 0:00:00]} 6. h3 {[%emt 0:04:00]} e5 {[%emt 0:00:30]} 7. Nde2 {[%emt 0:00:00] 7.Nxc6 is the recent fashion.} Be7 {[%emt 0:00:30] B56: Classical Sicilian: Unusual Lines.} 8. g4 {[%emt 0:00:00]} O-O {[%emt 0:00:30]} 9. Bg2 {[%emt 0:00:30]} a6 {[%emt 0:00:30]} 10. Be3 {[%emt 0:00:30]} b5 {[%emt 0:00:30]} 11. Ng3 {[%emt 0:02:30]} b4 {[%emt 0:01:30]} 12. Nd5 {[%emt 0:00:30]} Nxd5 {[%emt 0:00:30]} 13. Qxd5 $146 {[%emt 0:00:30]} ({Predecessor:} 13. exd5 Nd4 14. O-O f5 15. Bxd4 exd4 16. Nxf5 Bxf5 17. gxf5 Rxf5 18. a3 bxa3 19. Rxa3 {½-½ Staf,G (2120)-Mostowik,D (2115) W-ch WS/M/347 email 2011}) 13... Qc7 {[%emt 0:04:30]} 14. Qd2 {[%emt 0:01:30]} g6 {[%emt 0:04:30]} 15. O-O {[%emt 0:00:30]} Be6 {[%emt 0:01:30]} 16. b3 {[%emt 0:02:30]} a5 {[%emt 0:00:30]} 17. c4 {[%emt 0:00:30]} bxc3 {[%emt 0:00:30]} 18. Qxc3 {[%emt 0:00:00]} Rfc8 {[%emt 0:00:00]} 19. Rfc1 {[%emt 0:03:00]} Qb7 {[%emt 0:02:00]} 20. Qd2 {[%emt 0:00:00]} Qb4 {[%emt 0:00:00]} 21. Ne2 {[%emt 0:02:00]} Qxd2 {[%emt 0:04:00]} 22. Bxd2 {[%emt 0:00:00]} Nb4 {[%emt 0:00:00]} 23. Nc3 {[%emt 0:02:00]} Nd3 {[%emt 0:01:00]} 24. Nd5 {[%emt 0:05:30]} (24. Rc2 $15) 24... Bh4 $1 $17 {[%emt 0:16:30]} 25. Rxc8+ {[%emt 0:00:30]} Rxc8 {[%emt 0:00:30]} 26. Bxa5 {[%emt 0:00:30]} Bxf2+ {[%emt 0:00:30]} (26... Nxf2 27. Be1 Bxd5 28. exd5 $16) 27. Kf1 {[%emt 0:00:30] [#]} Bxd5 $1 {[%emt 0:04:30]} 28. exd5 {[%emt 0:00:30]} Bd4 {[%emt 0:00:30]} 29. Rd1 {[%emt 0:01:30]} Nf4 {[%emt 0:00:00]} 30. Be4 {[%emt 0:01:30]} Nxh3 {[%emt 0:02:00]} 31. Kg2 {[%emt 0:04:30] [#]} ({White should try} 31. Bb4) 31... Ng5 {[%emt 0:07:30]} (31... Nf2 32. Rxd4 Ra8 33. Kxf2 $18) (31... Nf4+ $1 $17 32. Kf3 Nh3) 32. Bd3 {[%emt 0:00:30]} (32. Bb1 $1 $15) 32... e4 {[%emt 0:02:30]} (32... Ra8 $17 33. b4 Rc8) 33. Bxe4 {[%emt 0:05:30]} Nxe4 {[%emt 0:00:30]} 34. Rxd4 {[%emt 0:00:00]} Rc2+ {[%emt 0:00:30]} 35. Kf3 {[%emt 0:00:00]} Rxa2 {[%emt 0:00:00]} 36. Kxe4 {[%emt 0:00:30]} Rxa5 {[%emt 0:00:00]} 37. Ra4 {[%emt 0:00:30]} ({Better is} 37. Rb4 $11) 37... Rb5 $1 $15 {[%emt 0:01:30]} 38. b4 {[%emt 0:00:30]} Kg7 {[%emt 0:01:30]} 39. Kd4 $1 {[%emt 0:00:00]} h5 {[%emt 0:11:30]} 40. Kc4 {[%emt 0:01:00]} Rb8 {[%emt 0:00:30]} 41. gxh5 {[%emt 0:08:30]} g5 {[%emt 0:04:30]} 42. Ra6 {[%emt 0:03:30]} Rd8 {[%emt 0:06:30]} 43. b5 {[%emt 0:03:30]} g4 {[%emt 0:01:30]} 44. b6 {[%emt 0:01:30]} Rb8 {[%emt 0:02:30]} 45. Kb5 {[%emt 0:13:30]} f5 $1 {[%emt 0:00:30]} 46. Kc6 {[%emt 0:00:30]} g3 {[%emt 0:00:30]} 47. Kc7 {[%emt 0:00:30]} (47. Kxd6 g2 48. Kc7 Ra8 (48... g1=Q 49. Kxb8 Qg3+ 50. Ka7 $15) 49. Rxa8 g1=Q (49... g1=B 50. b7 Kh6 51. b8=Q Kg5 52. Qg8+ Kf4 53. Qxg1 Ke4 54. d6)) 47... Rf8 {[%emt 0:04:58]} 48. b7 $1 {[%emt 0:00:30]} (48. Kxd6 $2 g2 49. Ra1 f4 $19) 48... g2 {[%emt 0:00:44]} 49. Rxd6 {[%emt 0:00:30]} (49. b8=R $2 {perishes.} Rf7+ (49... g1=R 50. h6+ Kf7 51. Rxf8+ Kxf8 52. Ra8+ Ke7 53. h7 Rc1+ 54. Kb6 Rb1+ 55. Kc6 $18) 50. Kxd6 g1=Q $19 (50... g1=B $2 51. Re8 $18)) (49. Ra1 f4 50. Kc6 (50. b8=B $2 Kh6 $19) (50. b8=Q Rxb8 51. Kxb8 f3 $19) (50. Kxd6 $2 f3 $19) 50... Rb8 $19) 49... g1=Q {[%emt 0:01:00]} 50. Rg6+ {[%emt 0:00:30]} Qxg6 $1 {[%emt 0:00:30]} 51. hxg6 {[%emt 0:00:00]} f4 {[%emt 0:00:00]} 52. b8=Q {[%emt 0:01:00]} Rxb8 {[%emt 0:00:00]} 53. Kxb8 {[%emt 0:00:30]} f3 {[%emt 0:00:12]} 54. d6 {[%emt 0:00:30]} f2 {[%emt 0:00:30]} 55. d7 {[%emt 0:00:00]} 1/2-1/2

[Event "10th Cesme Open-A 2024"]
[Site "Cesme"]
[Date "2024.06.25"]
[Round "4"]
[White "Bicer, Atakan Mert"]
[Black "Isik, Alparslan"]
[Result "1-0"]
[ECO "C78"]
[WhiteElo "2313"]
[BlackElo "2469"]
[Annotator "TA"]
[PlyCount "109"]
[EventDate "2024.06.23"]
[EventType "swiss"]
[EventCountry "TUR"]
[SourceTitle "playchess.com"]
[Source "ChessBase"]
[SourceQuality "1"]
[TimeControl "5400+30"]

{[%evp 44,109,0,-62,-32,-20,-22,-15,30,29,456,435,497,647,639,617,645,594,692,686,825,838,838,838,787,381,381,301,781,432,579,569,968,534,540,479,704,500,513,438,941,914,1013,660,653,636,620,420,454,431,466,454,410,295,945,806,798,785,756,654,5601,5593,5177,5181,2159,2005,1383,1352]} 1. e4 {[%emt 0:01:00]} e5 {[%emt 0:01:00]} 2. Nf3 {[%emt 0:00:30]} Nc6 {[%emt 0:00:00]} 3. Bb5 {[%emt 0:00:00]} a6 {[%emt 0:00:00]} 4. Ba4 {[%emt 0:00:00]} Nf6 {[%emt 0:02:30]} 5. O-O {[%emt 0:00:30]} b5 {[%emt 0:00:00]} 6. Bb3 {[%emt 0:00:30]} Bc5 {[%emt 0:00:00]} 7. c3 {[%emt 0:02:30]} d6 {[%emt 0:00:00]} 8. h3 {[%emt 0:00:30]} Bb7 {[%emt 0:01:00]} 9. d4 {[%emt 0:01:30]} Bb6 {[%emt 0:00:30]} 10. Re1 {[%emt 0:01:30]} h6 {[%emt 0:00:30]} 11. Be3 {[%emt 0:04:30]} O-O {[%emt 0:01:30]} 12. Nbd2 {[%emt 0:00:30]} Rb8 {[%emt 0:04:30] C78: Ruy Lopez: Archangelsk and Möller Defences.} 13. a4 {[%emt 0:18:30]} Re8 {[%emt 0:08:30]} 14. Bc2 {[%emt 0:12:30]} exd4 {[%emt 0:26:30]} 15. cxd4 {[%emt 0:06:30]} Nb4 {[%emt 0:01:30]} 16. a5 {[%emt 0:05:30]} Ba7 {[%emt 0:01:30]} 17. Bf4 $146 {[%emt 0:05:30]} ({Predecessor:} 17. d5 Bxe3 18. Rxe3 c6 19. dxc6 Nxc6 20. Nb3 Nb4 21. Bb1 Rc8 22. Qd2 Rc4 23. Nbd4 {0-1 Narayanan,S (2336)-Ashwin,J (2473) IND-chA 49th 2011 (1)}) 17... c5 {[%emt 0:03:30]} 18. d5 {[%emt 0:06:30]} c4 {[%emt 0:01:30]} 19. Bb1 {[%emt 0:01:30]} Qc7 {[%emt 0:10:30]} 20. Nf1 {[%emt 0:10:32]} c3 {[%emt 0:13:30]} 21. bxc3 {[%emt 0:00:42]} Qxc3 {[%emt 0:00:00]} 22. Bxd6 {[%emt 0:00:17]} Rbd8 {[%emt 0:00:00]} (22... Qxa1 $17 23. Qd2 (23. Bxb4 $2 Nxe4 24. Re2 Bxd5 $19) 23... Nbxd5) 23. e5 {[%emt 0:05:55]} (23. Bxb4 $11 Qxb4 24. N1d2) 23... Nbxd5 {[%emt 0:01:30]} (23... Rxd6 24. exd6 Rxe1 (24... Qxa1 $2 25. Rxe8+ Nxe8 26. d7 $18) 25. Qxe1 $16) 24. Ra3 {[%emt 0:04:48]} Qc6 {[%emt 0:01:30]} 25. Qd2 $1 {[%emt 0:00:18]} b4 {[%emt 0:05:22]} 26. Rd3 {[%emt 0:01:41]} Nh5 $2 {[%emt 0:03:29][%mdl 8192]} (26... Rxd6 $1 $11 {and Black is okay.} 27. exd6 Rxe1 (27... Ne4 $2 28. Rxe4 Rxe4 29. Rxd5 $18) 28. Qxe1 Bc5) 27. Rxd5 $1 $18 {[%emt 0:02:59]} (27. Bxb4 Nhf4 28. Bd6 Nxd3 29. Qxd3 g6 $17) 27... Qxd5 {[%emt 0:00:30] [#]} 28. Qc2 $1 {[%emt 0:00:12]} g6 {[%emt 0:04:36]} 29. Ba2 {[%emt 0:00:51]} Rc8 {[%emt 0:00:01]} 30. Qb1 {[%emt 0:00:44]} (30. Qxc8 Bxf2+ (30... Rxc8 31. Bxd5 Bxd5 32. Bxb4 $15) 31. Kh1 Rxc8 $17 (31... Qxa2 $2 32. Qxe8+ Kg7 33. e6 $18)) 30... Rc4 {[%emt 0:02:35] [#]} 31. N1d2 $1 {[%emt 0:00:26]} (31. Bxc4 Qxc4 32. Ne3 (32. Bxb4 $2 Bxf3 33. e6 Ba8 $19) (32. Qxb4 Qxb4 33. Bxb4 Nf4 $17) 32... Bxe3 33. Rxe3 Nf4 $16) 31... Rec8 {[%emt 0:03:55]} 32. Nxc4 {[%emt 0:00:28]} Rxc4 {[%emt 0:01:10]} 33. Bxc4 {[%emt 0:02:10]} Qxc4 {[%emt 0:00:18]} 34. Qxb4 {[%emt 0:00:23]} (34. Bxb4 Bxf3 35. e6 (35. gxf3 $2 {perishes.} Qh4 $19) 35... Bxg2 $14) (34. e6 $142 Bxf3 35. exf7+ (35. gxf3 Bxf2+ 36. Kxf2 Qd4+ 37. Kf1 Qxd6 $18) (35. Bxb4 Bxg2 36. e7 Bc6 $16) (35. Qxb4 Qxb4 36. Bxb4 Bxg2 $18) 35... Kxf7 36. Re7+ (36. gxf3 Bxf2+ 37. Kxf2 Qd4+ 38. Kf1 Qxd6 $18) 36... Kf6 37. Rxa7) 34... Qc2 {[%emt 0:03:15]} 35. Qd2 {[%emt 0:00:21]} ({Stronger than} 35. Qxb7 Qxf2+ 36. Kh2 Qg3+ 37. Kh1 Qxe1+ 38. Nxe1 Ng3+ 39. Kh2 Nf1+ 40. Kh1 Ng3+ 41. Kh2 Nf1+ 42. Kh1 Ng3+ $11) 35... Qf5 $2 {[%emt 0:00:04]} (35... Qxd2 36. Nxd2 Nf4) 36. Nh4 {[%emt 0:02:31]} Qe6 {[%emt 0:00:08]} 37. Qxh6 {[%emt 0:00:39]} Ng3 {[%emt 0:01:14]} 38. Qf4 {[%emt 0:00:41]} Nh5 {[%emt 0:00:30]} 39. Qg4 {[%emt 0:00:45]} Qa2 {[%emt 0:00:41]} (39... Qxg4 $142 40. hxg4 Ng7) 40. Qe2 {[%emt 0:00:27]} Qe6 {[%emt 0:00:15]} 41. Rb1 {[%emt 0:00:41]} Nf4 {[%emt 0:00:36]} (41... Ng3 $142 42. Qd1 Bd5) 42. Qd2 $18 {[%emt 0:01:05]} Be4 {[%emt 0:00:38]} 43. Re1 {[%emt 0:01:07]} Nd3 {[%emt 0:00:39]} 44. Re2 {[%emt 0:00:52]} Qd5 {[%emt 0:00:30]} 45. Kh2 {[%emt 0:00:18]} Bd4 {[%emt 0:00:32]} 46. Qg5 {[%emt 0:00:50]} Nxe5 {[%emt 0:00:24]} 47. Bxe5 {[%emt 0:00:59]} Bxe5+ {[%emt 0:00:01]} 48. f4 {[%emt 0:00:00]} f6 $2 {[%emt 0:01:34]} (48... Bc7 49. Qxd5 Bxd5) 49. Qg4 {[%emt 0:00:12]} Bd6 {[%emt 0:00:00]} 50. Nxg6 {[%emt 0:00:37]} Kf7 {[%emt 0:00:00]} 51. Nh4 {[%emt 0:00:10]} Bc5 {[%emt 0:00:19]} 52. Rxe4 {[%emt 0:00:21]} Qxe4 {[%emt 0:00:34]} 53. Qh5+ {[%emt 0:00:04]} Kg8 {[%emt 0:00:00]} 54. Qxc5 {[%emt 0:00:43]} Qxf4+ {[%emt 0:00:29]} 55. g3 {[%emt 0:00:00]} 1-0

[Event "10th Cesme Open-A 2024"]
[Site "Cesme"]
[Date "2024.06.25"]
[Round "4"]
[White "Koksal, Ege"]
[Black "Rasulov, Vugar"]
[Result "1-0"]
[ECO "D87"]
[WhiteElo "2297"]
[BlackElo "2557"]
[Annotator "TA"]
[PlyCount "163"]
[EventDate "2024.06.23"]
[EventType "swiss"]
[EventCountry "TUR"]
[SourceTitle "playchess.com"]
[Source "ChessBase"]
[SourceQuality "1"]
[TimeControl "5400+30"]

{[%evp 54,163,68,68,72,74,66,59,58,33,27,25,116,116,117,114,112,97,109,104,125,127,395,231,218,211,614,604,825,827,888,8,8,8,8,8,8,8,8,8,8,8,8,8,8,8,8,8,8,8,8,8,8,8,8,8,8,8,8,8,8,8,8,8,8,8,17,8,8,8,298,298,298,298,298,298,298,298,298,298,298,298,298,298,298,298,298,298,298,298,298,298,298,298,29978,29979,29981,29981,29981,29981,29981,29979,29978,29979,29979,29978,29980,29981,29981,29982,29982,29983]} 1. d4 {[%emt 0:06:00]} Nf6 {[%emt 0:01:00]} 2. c4 {[%emt 0:00:30]} g6 {[%emt 0:00:30]} 3. Nc3 {[%emt 0:00:30]} d5 {[%emt 0:00:00]} 4. cxd5 {[%emt 0:00:30]} Nxd5 {[%emt 0:00:00]} 5. e4 {[%emt 0:00:30]} Nxc3 {[%emt 0:00:30]} 6. bxc3 {[%emt 0:00:30]} Bg7 {[%emt 0:00:00]} 7. Bc4 {[%emt 0:00:30]} c5 {[%emt 0:00:00]} 8. Ne2 {[%emt 0:00:30]} Nc6 {[%emt 0:00:30]} 9. Be3 {[%emt 0:02:30]} O-O {[%emt 0:00:30]} 10. O-O {[%emt 0:00:30]} Qc7 {[%emt 0:00:30]} 11. Rc1 {[%emt 0:04:30]} Rd8 {[%emt 0:02:30]} 12. Qd2 {[%emt 0:03:30]} Qa5 {[%emt 0:05:30] has lost popularity (12...b6).} 13. Rfd1 {[%emt 0:07:30]} cxd4 {[%emt 0:08:30]} 14. cxd4 {[%emt 0:01:30]} Qxd2 {[%emt 0:00:00] D87: Exchange Grünfeld: Classical Line: Variations without ...cxd4.} 15. Rxd2 {[%emt 0:00:30]} Bd7 {[%emt 0:00:00]} 16. f3 {[%emt 0:04:30]} Rac8 {[%emt 0:01:30]} 17. Rdc2 {[%emt 0:02:30]} e6 $146 {[%emt 0:03:30]} ({Predecessor:} 17... Na5 18. Bd3 Rxc2 19. Rxc2 Rc8 20. Rxc8+ Bxc8 21. Kf2 Be6 22. d5 Bd7 23. Bd4 Bxd4+ 24. Nxd4 {½-½ Ilincic,Z (2399)-Farago,I (2401) Budapest FS06 GM 2017 (7)}) 18. Bb3 {[%emt 0:07:30]} Na5 {[%emt 0:11:30]} 19. Rxc8 {[%emt 0:00:30]} Rxc8 {[%emt 0:00:30]} 20. Rxc8+ {[%emt 0:00:30]} Bxc8 {[%emt 0:00:30]} 21. Bc2 {[%emt 0:00:30]} Nc4 {[%emt 0:00:00]} 22. Bc1 {[%emt 0:00:30]} Bd7 {[%emt 0:00:00]} 23. Kf2 {[%emt 0:04:30]} Bb5 {[%emt 0:04:30]} 24. Bd3 {[%emt 0:00:30]} Kf8 {[%emt 0:03:30]} 25. e5 {[%emt 0:03:30]} Nd6 {[%emt 0:00:30]} 26. Bxg6 {[%emt 0:06:30]} hxg6 {[%emt 0:00:30]} 27. Ba3 {[%emt 0:01:30]} Ke8 {[%emt 0:00:30]} 28. Bxd6 {[%emt 0:00:00]} Bh6 {[%emt 0:00:00]} 29. Nc3 {[%emt 0:03:00]} Bc4 {[%emt 0:00:00]} 30. a3 {[%emt 0:00:30]} Kd7 {[%emt 0:00:30]} 31. h4 {[%emt 0:06:30]} f5 {[%emt 0:01:30]} 32. g4 {[%emt 0:00:30]} Bc1 {[%emt 0:03:30] [#]} (32... Bd2 $11 {remains equal.} 33. Bb4 fxg4) 33. Ne2 $1 $16 {[%emt 0:01:30]} Bb2 {[%emt 0:00:30] [#]} 34. Nf4 $1 {[%emt 0:02:30]} Bxd4+ {[%emt 0:00:30]} 35. Kg3 {[%emt 0:00:30]} fxg4 {[%emt 0:04:30]} 36. fxg4 {[%emt 0:00:30]} Bc3 {[%emt 0:09:30]} 37. Nxg6 {[%emt 0:06:30]} b5 $2 {[%emt 0:00:30][%mdl 8192]} (37... Ke8 $16 {was worth a try.} 38. h5 Kf7) 38. h5 {[%emt 0:00:30]} (38. g5 $142) 38... Bd2 $18 {[%emt 0:01:30]} 39. Nf4 {[%emt 0:02:30]} Bb3 $2 {[%emt 0:02:30]} (39... Ke8 40. Bb4 Bc1) 40. g5 $18 {[%emt 0:08:01]} a5 {[%emt 0:00:30]} 41. g6 {[%emt 0:01:10]} Bc2 {[%emt 0:00:30]} 42. h6 $2 {[%emt 0:01:38]} ({Only move:} 42. Kf3 $18 {Threatens to win with h6.} Bd1+ 43. Kf2 (43. Ne2 Ke8 $16)) 42... Bxf4+ $11 {[%emt 0:00:30]} 43. Kxf4 {[%emt 0:00:30]} Bxg6 {[%emt 0:00:30]} 44. Kg5 {[%emt 0:00:00]} Bf5 {[%emt 0:00:00]} 45. Kf6 {[%emt 0:00:08]} Kc6 {[%emt 0:00:00]} 46. Be7 {[%emt 0:06:06]} Kd7 {[%emt 0:07:30]} 47. Bc5 {[%emt 0:02:15]} Kc6 {[%emt 0:00:30]} 48. Bd6 {[%emt 0:00:00]} Kd5 {[%emt 0:02:30]} 49. Bc7 $1 {[%emt 0:00:38]} a4 $1 {[%emt 0:00:00]} (49... b4 50. Bxa5 b3 (50... bxa3 $2 51. Bb4 $18) 51. Bc3 $18) 50. Ba5 {[%emt 0:00:00]} Kd4 {[%emt 0:01:00]} 51. Bb4 {[%emt 0:01:04]} Kd5 {[%emt 0:01:30]} 52. Be1 {[%emt 0:02:38]} Kd4 {[%emt 0:00:30]} 53. Bd2 {[%emt 0:00:06]} Kd5 {[%emt 0:00:30]} 54. Bb4 {[%emt 0:01:42]} Kd4 {[%emt 0:00:30]} 55. h7 {[%emt 0:01:46]} Bxh7 {[%emt 0:00:30]} 56. Kxe6 {[%emt 0:00:03]} Ke4 {[%emt 0:02:30]} 57. Kf6 {[%emt 0:01:17]} Bf5 {[%emt 0:00:30]} 58. e6 {[%emt 0:00:13]} Bg4 {[%emt 0:00:30]} 59. e7 {[%emt 0:00:42]} Bh5 {[%emt 0:00:30]} 60. Kg7 {[%emt 0:00:15]} Kf5 {[%emt 0:00:00]} 61. Kf8 {[%emt 0:00:00]} Ke6 $2 {[%emt 0:01:00][%mdl 8192]} (61... Ke5 $1 $11 {and Black has nothing to worry.} 62. e8=Q+ (62. e8=B Bg4 $18) 62... Bxe8 63. Kxe8 Kf5) 62. e8=Q+ $18 {[%emt 0:00:23]} ({Resist} 62. e8=B Be2 63. Bc6 Kf6 $18) (62. e8=R+ Kd5 63. Re3 Kd4 $18) 62... Bxe8 {[%emt 0:00:30]} 63. Kxe8 {[%emt 0:00:00]} Kf6 {[%emt 0:00:00]} 64. Kd7 {[%emt 0:00:00]} Ke5 {[%emt 0:00:00]} 65. Kc6 {[%emt 0:00:16]} Ke6 {[%emt 0:00:00]} 66. Bd6 {[%emt 0:01:18]} ({Less strong is} 66. Kxb5 Kd7 67. Bd2 (67. Kxa4 Kc6 $18) 67... Kd8 $18) 66... Kf7 {[%emt 0:01:00]} 67. Kd5 {[%emt 0:01:52]} Kf6 {[%emt 0:00:00]} 68. Bh2 {[%emt 0:00:00]} Kf5 {[%emt 0:00:00]} 69. Be5 {[%emt 0:00:59]} Kg6 {[%emt 0:00:30]} 70. Ke6 {[%emt 0:00:11]} Kg5 {[%emt 0:00:00]} 71. Bh2 {[%emt 0:00:03]} Kg4 {[%emt 0:00:00]} 72. Kf6 {[%emt 0:00:39]} Kf3 {[%emt 0:00:30]} 73. Kf5 {[%emt 0:00:21]} Ke3 $2 {[%emt 0:00:30]} (73... Kg2 $18) 74. Ke5 {[%emt 0:00:24]} Kf3 {[%emt 0:00:30]} 75. Kd5 {[%emt 0:00:23]} Ke3 {[%emt 0:00:30]} 76. Be5 {[%emt 0:01:54]} Kd3 {[%emt 0:01:30]} 77. Bd4 {[%emt 0:00:33]} Kc2 {[%emt 0:00:00]} 78. Bf6 {[%emt 0:00:34]} Kd3 {[%emt 0:00:00]} 79. Bg5 {[%emt 0:00:34]} Ke2 {[%emt 0:01:30]} 80. Kc5 {[%emt 0:00:24]} Kd3 {[%emt 0:00:30]} 81. Kxb5 {[%emt 0:00:30]} Kd4 {[%emt 0:00:30]} 82. Kxa4 {[%emt 0:00:00]} 1-0

[Event "10th Cesme Open-A 2024"]
[Site "Cesme"]
[Date "2024.06.25"]
[Round "4"]
[White "Karaoglan, Kivanc"]
[Black "Emir, Emirhan"]
[Result "1-0"]
[ECO "C02"]
[WhiteElo "2274"]
[BlackElo "2006"]
[Annotator "RC"]
[PlyCount "77"]
[EventDate "2024.06.23"]
[EventType "swiss"]
[EventCountry "TUR"]
[SourceTitle "playchess.com"]
[Source "ChessBase"]
[SourceQuality "1"]
[TimeControl "5400+30"]

1. e4 {[%emt 0:01:00]} e6 {[%emt 0:01:00]} 2. d4 {[%emt 0:00:30]} d5 {[%emt 0:00:00]} 3. e5 {[%emt 0:00:30]} c5 {[%emt 0:00:00]} 4. c3 {[%emt 0:00:30]} Nc6 {[%emt 0:00:00]} 5. Nf3 {[%emt 0:00:00]} Bd7 {[%emt 0:00:00]} 6. Be2 {[%emt 0:00:00]} Nge7 {[%emt 0:00:30]} 7. O-O {[%emt 0:01:30]} Nf5 {[%emt 0:00:30]} 8. dxc5 {[%emt 0:01:30]} Bxc5 {[%emt 0:01:30]} 9. b4 {[%emt 0:00:00]} Be7 {[%emt 0:01:30]} 10. b5 {[%emt 0:00:00]} Na5 {[%emt 0:00:30]} 11. Nbd2 {[%emt 0:05:30]} Rc8 {[%emt 0:01:30]} 12. Nb3 {[%emt 0:02:30]} Nc4 {[%emt 0:02:30]} 13. a4 {[%emt 0:05:30]} h5 {[%emt 0:02:30]} 14. Nbd4 {[%emt 0:06:30]} Nh6 {[%emt 0:05:30]} 15. Bd3 {[%emt 0:01:30]} g5 {[%emt 0:02:30]} 16. Re1 {[%emt 0:00:30]} Na5 {[%emt 0:26:30]} 17. Bb2 {[%emt 0:13:30]} g4 {[%emt 0:02:30]} 18. Nd2 {[%emt 0:00:00]} h4 {[%emt 0:00:30]} 19. Qe2 {[%emt 0:05:00]} Bg5 {[%emt 0:02:30]} 20. N2b3 {[%emt 0:07:30]} Nc4 {[%emt 0:05:30]} 21. Bc1 {[%emt 0:01:30]} Rg8 {[%emt 0:03:30]} 22. g3 {[%emt 0:04:30]} Bxc1 {[%emt 0:02:30]} 23. Rexc1 {[%emt 0:00:30]} Rg5 {[%emt 0:01:30]} 24. Bxc4 {[%emt 0:01:30]} Rxc4 {[%emt 0:00:30]} 25. Nd2 {[%emt 0:00:30]} Rc8 {[%emt 0:00:30]} 26. c4 {[%emt 0:02:30]} hxg3 {[%emt 0:01:30]} 27. hxg3 {[%emt 0:01:30]} f6 {[%emt 0:05:30]} 28. exf6 {[%emt 0:08:30]} Qxf6 {[%emt 0:00:00]} 29. N2b3 {[%emt 0:06:30]} dxc4 {[%emt 0:11:00]} 30. Rxc4 {[%emt 0:01:30]} Rxc4 {[%emt 0:00:30]} 31. Qxc4 {[%emt 0:00:30]} Nf7 {[%emt 0:00:00]} 32. Qc7 {[%emt 0:03:30]} Nd8 {[%emt 0:00:00]} 33. Re1 {[%emt 0:06:45]} Rh5 {[%emt 0:01:30]} 34. Re4 {[%emt 0:00:39]} Qh8 {[%emt 0:02:44]} 35. Kf1 {[%emt 0:02:53]} Rd5 {[%emt 0:16:02]} 36. Ke2 {[%emt 0:01:34]} e5 {[%emt 0:02:18]} 37. Qc4 {[%emt 0:01:10]} Rd6 {[%emt 0:00:35]} 38. Nc5 {[%emt 0:03:38]} Rxd4 {[%emt 0:00:22]} 39. Qxd4 {[%emt 0:00:15]} 1-0

[Event "10th Cesme Open-A 2024"]
[Site "Cesme"]
[Date "2024.06.25"]
[Round "4"]
[White "Barrish, Daniel"]
[Black "Fromm, Marius"]
[Result "0-1"]
[ECO "D07"]
[WhiteElo "2256"]
[BlackElo "2465"]
[Annotator "TA"]
[PlyCount "64"]
[EventDate "2024.06.23"]
[EventType "swiss"]
[EventCountry "TUR"]
[SourceTitle "playchess.com"]
[Source "ChessBase"]
[SourceQuality "1"]
[TimeControl "5400+30"]

{[%evp 12,64,46,41,50,48,38,45,56,50,58,53,79,4,16,26,35,0,0,-17,-20,-9,0,0,0,0,0,-39,-68,-75,0,-96,-84,-146,-150,-170,-72,-83,-80,-74,-61,-80,-72,-193,-191,-175,-175,-207,-209,-770,-612,-600,-599,-1782,-1618]} 1. d4 {[%emt 0:01:00]} d5 {[%emt 0:01:00]} 2. c4 {[%emt 0:00:30]} Nc6 {[%emt 0:00:00]} 3. cxd5 {[%emt 0:00:00]} Qxd5 {[%emt 0:00:00]} 4. e3 {[%emt 0:00:00]} e5 {[%emt 0:00:30]} 5. Nc3 {[%emt 0:00:30]} Bb4 {[%emt 0:00:00]} 6. a3 {[%emt 0:00:30]} Bxc3+ {[%emt 0:00:00]} 7. bxc3 {[%emt 0:00:00]} Nf6 {[%emt 0:00:30]} 8. c4 {[%emt 0:00:00]} Qd6 {[%emt 0:00:30]} 9. d5 {[%emt 0:00:30]} Ne7 {[%emt 0:00:30] White is slightly better.} 10. a4 {[%emt 0:00:00]} c6 {[%emt 0:15:30][%cal Rc6d5]} 11. Ba3 {[%emt 0:07:00]} Qd8 {[%emt 0:03:30][%cal Rc6d5]} 12. Qb3 {[%emt 0:07:30]} (12. Nf3 $16) 12... cxd5 {[%emt 0:05:30]} 13. cxd5 {[%emt 0:10:30] Black must now prevent Bb5+.} Qa5+ {[%emt 0:13:30]} 14. Bb4 {[%emt 0:00:30]} Qxd5 {[%emt 0:00:30]} 15. Qa3 {[%emt 0:05:30]} Nc6 {[%emt 0:02:30]} 16. Rd1 {[%emt 0:03:30]} Qe4 {[%emt 0:00:30]} 17. Bc5 {[%emt 0:14:30] A strong pair of Bishops.} Be6 {[%emt 0:01:30]} 18. Nf3 {[%emt 0:04:30]} Rd8 {[%emt 0:00:30] [#] ( -> ...Rxd1+)} 19. Rxd8+ {[%emt 0:00:30]} (19. Bd3 Qg4 20. O-O e4 $19) (19. Bd6 $5) 19... Kxd8 {[%emt 0:00:00][%cal Be8d8,Bd8c8,Bc8b7,Bb7a8][%mdl 32]} 20. Nd2 {[%emt 0:08:30] Inhibits Qb1+.} Qg6 {[%emt 0:05:00]} (20... Qd5 $17 {And now ...Kc8 would win.} 21. f3 Qa2) 21. Be2 {[%emt 0:02:30]} (21. e4 $1 $11 {keeps the balance.}) 21... Kc8 {[%emt 0:02:30][%cal Oh8d8] Threatens to win with ...Rd8!} 22. a5 {[%emt 0:05:30]} ({White has to play} 22. O-O Bh3 23. Bf3) 22... Rd8 $17 {[%emt 0:10:30][%cal Of6e4]} 23. a6 {[%emt 0:01:30]} Qc2 {[%emt 0:01:30]} (23... Qxg2 $2 {is the wrong capture.} 24. axb7+ (24. Bf3 Qh3 $18) 24... Kc7 (24... Kxb7 $2 25. Bf3 $18) 25. Bf3 $18) (23... b6 $19 {has better winning chances.} 24. Be7 Rd7 (24... Qxg2 $2 25. Bf3 $18)) 24. axb7+ {[%emt 0:03:30]} Kxb7 {[%emt 0:01:30]} 25. Bd6 {[%emt 0:05:32][%cal Oe1g1]} Qa2 {[%emt 0:11:30]} 26. Ba6+ {[%emt 0:01:06] [#]} Ka8 $1 {[%emt 0:00:30][%cal Od8d6] Chess con chili.} 27. Bb5 {[%emt 0:00:19] White does not recover from this.} (27. Be2 $17 {was necessary.}) 27... Qd5 $19 {[%emt 0:03:30][%csl LRb5,LRd6,LRg2]} 28. Bxc6+ {[%emt 0:03:10]} Qxc6 {[%emt 0:00:30]} 29. Bc5 {[%emt 0:00:10][%csl Gc5][%cal Ra3a7] White is weak on the light squares} a6 $40 {[%emt 0:01:30][%cal Od8d2][%mdl 128] ...Rxd2! would now be deadly. Black goes for the king. Active counter play!} ({Not} 29... Qxg2 30. Qxa7#) 30. Nf3 {[%emt 0:09:36]} (30. f3) 30... Qb5 {[%emt 0:02:24] Black is clearly winning.} 31. Bb4 {[%emt 0:02:25]} Rd3 {[%emt 0:01:59]} 32. Qa1 {[%emt 0:00:36][%cal Oe1g1]} Qxb4+ {[%emt 0:00:20] Weighted Error Value: White=0.65/Black=0.22 (precise) .  Mistake:       	White=5     	Black=2      Inaccurate:     	White=1     	Black=1      OK:         	White=9     	Black=7      Best:        	White=4     	Black=1      Strong:       	---       	Black=1} 0-1